[Event "Late-Titled-Tuesday-Blitz-April-16-2024"]
[Site "Chess.com"]
[Date "2024.04.16"]
[Round "5"]
[White "Savagelittlemole"]
[Black "GAO"]
[Result "1/2-1/2"]
[WhiteElo "2487"]
[BlackElo "2304"]
[TimeControl "180+1"]
[EndTime "14:54:26 PDT"]
[Termination "Game drawn - insufficient material"]

1. d4 {[%clk 0:03:00.9]} 1... Nf6 {[%clk 0:02:59.7]} 2. Bg5 {[%clk 0:03:00.9]}
2... d5 {[%clk 0:02:58.9]} 3. Bxf6 {[%clk 0:03:00.9]} 3... exf6 {[%clk
0:02:59.8]} 4. Nf3 {[%clk 0:03:01.3]} 4... g6 {[%clk 0:02:59.5]} 5. c4 {[%clk
0:03:01.6]} 5... c6 {[%clk 0:02:59.3]} 6. e3 {[%clk 0:03:01.4]} 6... f5 {[%clk
0:02:59.2]} 7. Nc3 {[%clk 0:03:01.6]} 7... Bg7 {[%clk 0:02:58.7]} 8. cxd5 {[%clk
0:03:01.4]} 8... cxd5 {[%clk 0:02:58.4]} 9. Bb5+ {[%clk 0:03:01.6]} 9... Nc6
{[%clk 0:02:56.8]} 10. Qa4 {[%clk 0:02:58.8]} 10... Qd6 {[%clk 0:02:52.9]} 11.
Ne5 {[%clk 0:02:52.1]} 11... O-O {[%clk 0:02:48.9]} 12. Nxc6 {[%clk 0:02:47.7]}
12... bxc6 {[%clk 0:02:46.3]} 13. Bxc6 {[%clk 0:02:48]} 13... Rb8 {[%clk
0:02:47]} 14. O-O {[%clk 0:02:36]} 14... Rb4 {[%clk 0:02:44.8]} 15. Qa3 {[%clk
0:02:31.4]} 15... a5 {[%clk 0:02:37.9]} 16. Bxd5 {[%clk 0:02:23.8]} 16... Ba6
{[%clk 0:02:37.6]} 17. Rfc1 {[%clk 0:02:17.9]} 17... f4 {[%clk 0:02:34.2]} 18.
Bf3 {[%clk 0:01:58]} 18... fxe3 {[%clk 0:02:33.8]} 19. fxe3 {[%clk 0:01:58.9]}
19... Rfb8 {[%clk 0:02:31.5]} 20. b3 {[%clk 0:01:48.8]} 20... Rxd4 {[%clk
0:02:22.6]} 21. Qxa5 {[%clk 0:01:39.2]} 21... Rd3 {[%clk 0:02:08.3]} 22. Ne4
{[%clk 0:01:38.9]} 22... Qb6 {[%clk 0:02:02.3]} 23. Qxb6 {[%clk 0:01:37.8]}
23... Rxb6 {[%clk 0:02:03.2]} 24. Rab1 {[%clk 0:01:16.8]} 24... Rxe3 {[%clk
0:02:02.7]} 25. h3 {[%clk 0:01:04]} 25... Bd3 {[%clk 0:01:50.6]} 26. Rc8+ {[%clk
0:01:02.5]} 26... Bf8 {[%clk 0:01:50]} 27. Rd1 {[%clk 0:00:57]} 27... Bxe4
{[%clk 0:01:40.2]} 28. Bxe4 {[%clk 0:00:53.8]} 28... Rxe4 {[%clk 0:01:41.1]} 29.
Rdd8 {[%clk 0:00:53.9]} 29... Kg7 {[%clk 0:01:33.5]} 30. Rxf8 {[%clk 0:00:53.9]}
30... Re1+ {[%clk 0:01:26]} 31. Kf2 {[%clk 0:00:49.6]} 31... Rbe6 {[%clk
0:01:25.6]} 32. Rg8+ {[%clk 0:00:48.5]} 32... Kf6 {[%clk 0:01:25.7]} 33. Rc2
{[%clk 0:00:48.8]} 33... h5 {[%clk 0:01:22.9]} 34. Rgc8 {[%clk 0:00:46.3]} 34...
Kg7 {[%clk 0:01:19.2]} 35. R8c6 {[%clk 0:00:44.9]} 35... R6e5 {[%clk 0:01:12]}
36. a4 {[%clk 0:00:42.1]} 36... Rb1 {[%clk 0:01:08.1]} 37. Rb6 {[%clk
0:00:39.9]} 37... Rf5+ {[%clk 0:01:06.8]} 38. Kg3 {[%clk 0:00:39]} 38... Rg5+
{[%clk 0:00:54.2]} 39. Kh4 {[%clk 0:00:32.1]} 39... Re5 {[%clk 0:00:52.7]} 40.
Rf2 {[%clk 0:00:24.3]} 40... Re4+ {[%clk 0:00:49.6]} 41. Kg3 {[%clk 0:00:21.3]}
41... h4+ {[%clk 0:00:41.1]} 42. Kf3 {[%clk 0:00:19.7]} 42... Rxa4 {[%clk
0:00:39.2]} 43. bxa4 {[%clk 0:00:18.3]} 43... Rxb6 {[%clk 0:00:39.2]} 44. Ra2
{[%clk 0:00:19]} 44... Ra6 {[%clk 0:00:20.6]} 45. a5 {[%clk 0:00:18.9]} 45... f5
{[%clk 0:00:21.2]} 46. Ke3 {[%clk 0:00:18.2]} 46... Kf6 {[%clk 0:00:21.7]} 47.
Kd4 {[%clk 0:00:18.8]} 47... g5 {[%clk 0:00:19.3]} 48. Kc5 {[%clk 0:00:17.6]}
48... g4 {[%clk 0:00:19.8]} 49. Kb5 {[%clk 0:00:16.5]} 49... Ra8 {[%clk
0:00:20]} 50. a6 {[%clk 0:00:16.2]} 50... Kg5 {[%clk 0:00:18]} 51. Kb6 {[%clk
0:00:15.2]} 51... gxh3 {[%clk 0:00:12.1]} 52. gxh3 {[%clk 0:00:16.1]} 52... Kf4
{[%clk 0:00:12.1]} 53. Rf2+ {[%clk 0:00:14.5]} 53... Ke4 {[%clk 0:00:11.7]} 54.
Kb7 {[%clk 0:00:13.3]} 54... Rh8 {[%clk 0:00:10.1]} 55. Rc2 {[%clk 0:00:11.5]}
55... f4 {[%clk 0:00:08.9]} 56. a7 {[%clk 0:00:11.4]} 56... Rh7+ {[%clk
0:00:08.3]} 57. Rc7 {[%clk 0:00:11.6]} 57... Rh8 {[%clk 0:00:08.8]} 58. Rc8
{[%clk 0:00:12]} 58... Rh7+ {[%clk 0:00:09]} 59. Kb6 {[%clk 0:00:12.2]} 59...
Rxa7 {[%clk 0:00:08.9]} 60. Kxa7 {[%clk 0:00:13.1]} 60... f3 {[%clk 0:00:08.3]}
61. Re8+ {[%clk 0:00:10.9]} 61... Kf4 {[%clk 0:00:08.2]} 62. Rh8 {[%clk
0:00:09.4]} 62... f2 {[%clk 0:00:06.6]} 63. Rxh4+ {[%clk 0:00:09.7]} 63... Kg3
{[%clk 0:00:06.6]} 64. Rg4+ {[%clk 0:00:09.4]} 64... Kxh3 {[%clk 0:00:03]} 65.
Rf4 {[%clk 0:00:09.6]} 65... Kg2 {[%clk 0:00:03]} 66. Kb6 {[%clk 0:00:08.2]}
66... f1=Q {[%clk 0:00:03.2]} 67. Rxf1 {[%clk 0:00:09.1]} 67... Kxf1 {[%clk
0:00:03.9]} 1/2-1/2

[Event "Late-Titled-Tuesday-Blitz-April-16-2024"]
[Site "Chess.com"]
[Date "2024.04.16"]
[Round "5"]
[White "giovannibrandao7"]
[Black "pfalcon1949"]
[Result "1-0"]
[WhiteElo "2233"]
[BlackElo "1964"]
[TimeControl "180+1"]
[EndTime "14:54:36 PDT"]
[Termination "giovannibrandao7 won on time"]

1. e4 {[%clk 0:02:57.6]} 1... e6 {[%clk 0:02:59.8]} 2. d4 {[%clk 0:02:57.3]}
2... d5 {[%clk 0:03:00]} 3. Nd2 {[%clk 0:02:57.3]} 3... Nc6 {[%clk 0:02:58.5]}
4. Ngf3 {[%clk 0:02:53.7]} 4... Nf6 {[%clk 0:02:57.5]} 5. e5 {[%clk 0:02:53.2]}
5... Nd7 {[%clk 0:02:57.4]} 6. c3 {[%clk 0:02:53.7]} 6... f6 {[%clk 0:02:57.4]}
7. exf6 {[%clk 0:02:51.2]} 7... Qxf6 {[%clk 0:02:57.3]} 8. Bd3 {[%clk
0:02:51.1]} 8... Bd6 {[%clk 0:02:56.7]} 9. O-O {[%clk 0:02:50.6]} 9... O-O
{[%clk 0:02:55.8]} 10. Bc2 {[%clk 0:02:45.6]} 10... e5 {[%clk 0:02:54.9]} 11.
dxe5 {[%clk 0:02:45.7]} 11... Ndxe5 {[%clk 0:02:54.6]} 12. Nxe5 {[%clk
0:02:45.9]} 12... Nxe5 {[%clk 0:02:54.2]} 13. Nb3 {[%clk 0:02:20.5]} 13... c6
{[%clk 0:02:43.1]} 14. f4 {[%clk 0:02:13.8]} 14... Ng4 {[%clk 0:02:31.1]} 15. h3
{[%clk 0:02:00.5]} 15... Nh6 {[%clk 0:02:24.4]} 16. Nd4 {[%clk 0:01:55]} 16...
Bc5 {[%clk 0:02:16.5]} 17. Kh2 {[%clk 0:01:49.9]} 17... Bxd4 {[%clk 0:02:13.9]}
18. cxd4 {[%clk 0:01:41.2]} 18... Bf5 {[%clk 0:02:10.5]} 19. Be3 {[%clk
0:01:36.5]} 19... Rae8 {[%clk 0:02:07.8]} 20. Bg1 {[%clk 0:01:17.3]} 20... Bxc2
{[%clk 0:02:04.7]} 21. Qxc2 {[%clk 0:01:18.2]} 21... Nf5 {[%clk 0:02:02.5]} 22.
Qc3 {[%clk 0:01:07.5]} 22... Re2 {[%clk 0:01:55.3]} 23. Rae1 {[%clk 0:00:51.2]}
23... Rfe8 {[%clk 0:01:54.9]} 24. Rxe2 {[%clk 0:00:51.1]} 24... Rxe2 {[%clk
0:01:55.7]} 25. Re1 {[%clk 0:00:50.4]} 25... Qe7 {[%clk 0:01:32]} 26. Rxe2
{[%clk 0:00:34.6]} 26... Qxe2 {[%clk 0:01:32.9]} 27. Qa5 {[%clk 0:00:34.3]}
27... h6 {[%clk 0:01:14.6]} 28. Qxa7 {[%clk 0:00:25.1]} 28... Nh4 {[%clk
0:01:09.4]} 29. Qb8+ {[%clk 0:00:13.6]} 29... Kh7 {[%clk 0:01:07.2]} 30. Kg3
{[%clk 0:00:13.8]} 30... Qxg2+ {[%clk 0:00:58.6]} 31. Kxh4 {[%clk 0:00:13.3]}
31... Qxg1 {[%clk 0:00:52.3]} 32. Qxb7 {[%clk 0:00:09.1]} 32... Qf2+ {[%clk
0:00:46.4]} 33. Kg4 {[%clk 0:00:09.3]} 33... Qg2+ {[%clk 0:00:45.9]} 34. Kh4
{[%clk 0:00:06.3]} 34... Qf3 {[%clk 0:00:45]} 35. Qf7 {[%clk 0:00:05.1]} 35...
Qf2+ {[%clk 0:00:40.4]} 36. Kg4 {[%clk 0:00:04.9]} 36... Qe2+ {[%clk 0:00:39.8]}
37. Kg3 {[%clk 0:00:02.7]} 37... Qe3+ {[%clk 0:00:38.6]} 38. Kg4 {[%clk
0:00:02.9]} 38... Qg1+ {[%clk 0:00:37.2]} 39. Kf5 {[%clk 0:00:02.5]} 39... Qb1+
{[%clk 0:00:35.7]} 40. Ke6 {[%clk 0:00:02.7]} 40... Qe4+ {[%clk 0:00:29.7]} 41.
Kd7 {[%clk 0:00:02.2]} 41... c5 {[%clk 0:00:20.9]} 42. dxc5 {[%clk 0:00:02]}
42... d4 {[%clk 0:00:20.9]} 43. c6 {[%clk 0:00:02.5]} 43... d3 {[%clk
0:00:15.9]} 44. c7 {[%clk 0:00:01.7]} 44... Qa4+ {[%clk 0:00:16.5]} 45. Ke7
{[%clk 0:00:01.4]} 45... Qe4+ {[%clk 0:00:15.4]} 46. Kd7 {[%clk 0:00:01.7]}
46... Qa4+ {[%clk 0:00:13.1]} 47. Kd6 {[%clk 0:00:01.5]} 47... Qa6+ {[%clk
0:00:12.3]} 48. Kc5 {[%clk 0:00:02]} 48... Qa5+ {[%clk 0:00:10.5]} 49. Kc4
{[%clk 0:00:02.6]} 49... Qxa2+ {[%clk 0:00:10.2]} 50. Kc3 {[%clk 0:00:02.9]}
50... Qxf7 {[%clk 0:00:10.4]} 51. c8=Q {[%clk 0:00:02.5]} 51... Qf6+ {[%clk
0:00:10.7]} 52. Kxd3 {[%clk 0:00:03]} 52... Qd6+ {[%clk 0:00:10.5]} 53. Ke3
{[%clk 0:00:03.2]} 53... Qb6+ {[%clk 0:00:08.1]} 54. Kf3 {[%clk 0:00:03]} 54...
Qxb2 {[%clk 0:00:07]} 55. Qf5+ {[%clk 0:00:03.2]} 55... Kg8 {[%clk 0:00:07.1]}
56. Qe6+ {[%clk 0:00:03.6]} 56... Kh8 {[%clk 0:00:07.3]} 57. Kg4 {[%clk
0:00:03.8]} 57... Qg2+ {[%clk 0:00:06]} 58. Kh4 {[%clk 0:00:03.6]} 58... Qf2+
{[%clk 0:00:05]} 59. Kg4 {[%clk 0:00:03.7]} 59... Qg1+ {[%clk 0:00:05.1]} 60.
Kf5 {[%clk 0:00:03.7]} 60... Qg3 {[%clk 0:00:05]} 61. Ke5 {[%clk 0:00:03.3]}
61... Qe3+ {[%clk 0:00:04.1]} 62. Kf5 {[%clk 0:00:03.9]} 62... Qxh3+ {[%clk
0:00:03.3]} 63. Ke5 {[%clk 0:00:03.3]} 63... Qe3+ {[%clk 0:00:03.7]} 64. Kf5
{[%clk 0:00:02.1]} 64... Qxe6+ {[%clk 0:00:04.6]} 65. Kxe6 {[%clk 0:00:03]}
65... Kg8 {[%clk 0:00:03.9]} 66. Ke7 {[%clk 0:00:02.3]} 66... g6 {[%clk
0:00:03]} 67. Kf6 {[%clk 0:00:02.4]} 67... Kh7 {[%clk 0:00:03]} 68. f5 {[%clk
0:00:02.5]} 68... g5 {[%clk 0:00:03.1]} 69. Ke5 {[%clk 0:00:01.9]} 69... Kg7
{[%clk 0:00:02.4]} 70. Ke6 {[%clk 0:00:02]} 70... g4 {[%clk 0:00:02.3]} 71. Ke7
{[%clk 0:00:01.6]} 1-0

[Event "Late-Titled-Tuesday-Blitz-April-16-2024"]
[Site "Chess.com"]
[Date "2024.04.16"]
[Round "5"]
[White "bascheyaro"]
[Black "xasid81"]
[Result "0-1"]
[WhiteElo "2818"]
[BlackElo "2660"]
[TimeControl "180+1"]
[EndTime "14:54:37 PDT"]
[Termination "xasid81 won by checkmate"]

1. d4 {[%clk 0:02:33.7]} 1... d5 {[%clk 0:02:55]} 2. Bf4 {[%clk 0:02:33.6]} 2...
Nf6 {[%clk 0:02:51.8]} 3. e3 {[%clk 0:02:33.7]} 3... e6 {[%clk 0:02:52]} 4. c4
{[%clk 0:02:33.7]} 4... Bb4+ {[%clk 0:02:45.6]} 5. Nc3 {[%clk 0:02:33.8]} 5...
O-O {[%clk 0:02:43.9]} 6. Nf3 {[%clk 0:02:33.4]} 6... c5 {[%clk 0:02:39.7]} 7.
dxc5 {[%clk 0:02:33.2]} 7... Ne4 {[%clk 0:02:32.1]} 8. Qb3 {[%clk 0:02:27.1]}
8... Qa5 {[%clk 0:02:30.1]} 9. a3 {[%clk 0:02:23]} 9... Bxc3+ {[%clk 0:02:28.2]}
10. bxc3 {[%clk 0:02:23.3]} 10... Na6 {[%clk 0:02:01]} 11. cxd5 {[%clk
0:02:19.2]} 11... Nexc5 {[%clk 0:01:51.6]} 12. Qc2 {[%clk 0:02:06.5]} 12... exd5
{[%clk 0:01:45.4]} 13. Be5 {[%clk 0:01:59]} 13... Re8 {[%clk 0:01:28.5]} 14. Bd4
{[%clk 0:01:51.9]} 14... Bd7 {[%clk 0:01:08]} 15. Ng5 {[%clk 0:01:42.9]} 15...
g6 {[%clk 0:01:03]} 16. Bxa6 {[%clk 0:01:38.7]} 16... bxa6 {[%clk 0:00:47.7]}
17. O-O {[%clk 0:01:29.2]} 17... Bf5 {[%clk 0:00:37.6]} 18. Qd1 {[%clk
0:01:29.3]} 18... Rab8 {[%clk 0:00:30.2]} 19. Qf3 {[%clk 0:01:23.1]} 19... Nb3
{[%clk 0:00:22]} 20. g4 {[%clk 0:01:22.8]} 20... Nxd4 {[%clk 0:00:19.2]} 21.
cxd4 {[%clk 0:01:22.3]} 21... Be6 {[%clk 0:00:18.8]} 22. Rfc1 {[%clk 0:01:17.8]}
22... Qd8 {[%clk 0:00:18.3]} 23. Qf4 {[%clk 0:01:16.5]} 23... Rc8 {[%clk
0:00:16.9]} 24. h3 {[%clk 0:01:11.9]} 24... Qe7 {[%clk 0:00:13.6]} 25. a4 {[%clk
0:01:04.2]} 25... h6 {[%clk 0:00:13.4]} 26. Nxe6 {[%clk 0:00:57.2]} 26... Qxe6
{[%clk 0:00:14.3]} 27. Rc5 {[%clk 0:00:56.9]} 27... Rxc5 {[%clk 0:00:14.1]} 28.
dxc5 {[%clk 0:00:57.8]} 28... Qe5 {[%clk 0:00:12.5]} 29. Qxe5 {[%clk 0:00:52.4]}
29... Rxe5 {[%clk 0:00:13.4]} 30. Rd1 {[%clk 0:00:49.9]} 30... Kf8 {[%clk
0:00:12.4]} 31. c6 {[%clk 0:00:50]} 31... Ke8 {[%clk 0:00:11.3]} 32. Rb1 {[%clk
0:00:49.2]} 32... Kd8 {[%clk 0:00:10.5]} 33. Rb7 {[%clk 0:00:49.1]} 33... Re4
{[%clk 0:00:10]} 34. Rxa7 {[%clk 0:00:44.8]} 34... Rxa4 {[%clk 0:00:10.1]} 35.
Rxf7 {[%clk 0:00:45.3]} 35... Rc4 {[%clk 0:00:10.1]} 36. Rd7+ {[%clk 0:00:24.2]}
36... Kc8 {[%clk 0:00:09.8]} 37. Rxd5 {[%clk 0:00:24.9]} 37... Rxc6 {[%clk
0:00:10.2]} 38. f4 {[%clk 0:00:24.2]} 38... Kb7 {[%clk 0:00:09.6]} 39. Kf2
{[%clk 0:00:24.2]} 39... Kb6 {[%clk 0:00:09.8]} 40. h4 {[%clk 0:00:20.4]} 40...
a5 {[%clk 0:00:10.1]} 41. Rd4 {[%clk 0:00:20.4]} 41... Kb5 {[%clk 0:00:10.1]}
42. Rd5+ {[%clk 0:00:19.3]} 42... Kb4 {[%clk 0:00:10.3]} 43. Rd8 {[%clk
0:00:19.5]} 43... a4 {[%clk 0:00:10.3]} 44. Rb8+ {[%clk 0:00:20]} 44... Kc3
{[%clk 0:00:10.2]} 45. Ra8 {[%clk 0:00:20.5]} 45... Kb3 {[%clk 0:00:10.6]} 46.
e4 {[%clk 0:00:21.1]} 46... a3 {[%clk 0:00:09.1]} 47. f5 {[%clk 0:00:21.7]}
47... gxf5 {[%clk 0:00:08.2]} 48. exf5 {[%clk 0:00:18]} 48... a2 {[%clk
0:00:08.6]} 49. Ke3 {[%clk 0:00:14.9]} 49... Rc3+ {[%clk 0:00:08.5]} 50. Kf4
{[%clk 0:00:15.2]} 50... Rc4+ {[%clk 0:00:08.8]} 51. Ke5 {[%clk 0:00:08]} 51...
Ra4 {[%clk 0:00:09.7]} 52. Rb8+ {[%clk 0:00:08.6]} 52... Kc2 {[%clk 0:00:09.1]}
53. Rc8+ {[%clk 0:00:08.4]} 53... Kd2 {[%clk 0:00:09.2]} 54. Rd8+ {[%clk
0:00:08.9]} 54... Ke2 {[%clk 0:00:09.2]} 55. Kf6 {[%clk 0:00:09.4]} 55... a1=Q+
{[%clk 0:00:09.5]} 56. Kg6 {[%clk 0:00:10]} 56... Ra6+ {[%clk 0:00:09.5]} 57.
Kh5 {[%clk 0:00:10.6]} 57... Qf6 {[%clk 0:00:09.3]} 58. Rg8 {[%clk 0:00:09.2]}
58... Qf7+ {[%clk 0:00:08.2]} 59. Rg6 {[%clk 0:00:09.6]} 59... Rxg6 {[%clk
0:00:08.3]} 60. fxg6 {[%clk 0:00:10]} 60... Qg7 {[%clk 0:00:08.6]} 61. g5 {[%clk
0:00:10.6]} 61... hxg5 {[%clk 0:00:09]} 62. Kxg5 {[%clk 0:00:11.5]} 62... Qe5+
{[%clk 0:00:08.9]} 63. Kh6 {[%clk 0:00:11.7]} 63... Qh8+ {[%clk 0:00:08.9]} 64.
Kg5 {[%clk 0:00:12.1]} 64... Kf3 {[%clk 0:00:09.3]} 65. h5 {[%clk 0:00:12.7]}
65... Qg7 {[%clk 0:00:09.4]} 66. h6 {[%clk 0:00:13]} 66... Qe5+ {[%clk
0:00:09.6]} 67. Kh4 {[%clk 0:00:13.7]} 67... Kf4 {[%clk 0:00:09.2]} 68. g7
{[%clk 0:00:13.9]} 68... Qg5+ {[%clk 0:00:09.3]} 69. Kh3 {[%clk 0:00:14.8]}
69... Qg3# {[%clk 0:00:10]} 0-1

[Event "Late-Titled-Tuesday-Blitz-April-16-2024"]
[Site "Chess.com"]
[Date "2024.04.16"]
[Round "5"]
[White "pirulillo"]
[Black "Attacker_2006"]
[Result "0-1"]
[WhiteElo "2334"]
[BlackElo "2505"]
[TimeControl "180+1"]
[EndTime "14:54:39 PDT"]
[Termination "Attacker_2006 won on time"]

1. e4 {[%clk 0:03:00.9]} 1... c5 {[%clk 0:02:59.2]} 2. Nf3 {[%clk 0:02:47.5]}
2... d6 {[%clk 0:02:59.2]} 3. d4 {[%clk 0:02:46.6]} 3... cxd4 {[%clk 0:02:59.7]}
4. Nxd4 {[%clk 0:02:45.6]} 4... Nf6 {[%clk 0:03:00]} 5. Nc3 {[%clk 0:02:45.4]}
5... a6 {[%clk 0:02:56.5]} 6. Be2 {[%clk 0:02:19.6]} 6... e5 {[%clk 0:02:54.8]}
7. Nb3 {[%clk 0:02:17.6]} 7... Be7 {[%clk 0:02:53.5]} 8. Be3 {[%clk 0:02:15.9]}
8... Be6 {[%clk 0:02:53]} 9. Nd5 {[%clk 0:02:15.2]} 9... Nxd5 {[%clk 0:02:49.9]}
10. exd5 {[%clk 0:02:14.8]} 10... Bf5 {[%clk 0:02:49.2]} 11. Qd2 {[%clk
0:02:15.7]} 11... O-O {[%clk 0:02:48.7]} 12. O-O {[%clk 0:02:12.2]} 12... Nd7
{[%clk 0:02:49]} 13. Na5 {[%clk 0:02:10.3]} 13... Qc7 {[%clk 0:02:45.5]} 14. c4
{[%clk 0:02:09.6]} 14... Bg6 {[%clk 0:02:41]} 15. b4 {[%clk 0:02:05.5]} 15... f5
{[%clk 0:02:41.2]} 16. f4 {[%clk 0:02:03.7]} 16... Bf6 {[%clk 0:02:38.9]} 17.
Rac1 {[%clk 0:01:58.8]} 17... exf4 {[%clk 0:02:39.1]} 18. Bxf4 {[%clk
0:01:53.2]} 18... Ne5 {[%clk 0:02:40]} 19. Nb3 {[%clk 0:01:51.6]} 19... b6
{[%clk 0:02:29.6]} 20. Kh1 {[%clk 0:01:49.2]} 20... h6 {[%clk 0:02:21.3]} 21. c5
{[%clk 0:01:40.8]} 21... Bh7 {[%clk 0:02:16.4]} 22. Nd4 {[%clk 0:01:33]} 22...
Rf7 {[%clk 0:02:12]} 23. Ne6 {[%clk 0:01:28.2]} 23... Qd7 {[%clk 0:02:08]} 24.
cxd6 {[%clk 0:01:12.6]} 24... g5 {[%clk 0:02:04.1]} 25. Rc7 {[%clk 0:01:03.9]}
25... Qxd6 {[%clk 0:02:02.3]} 26. Rc6 {[%clk 0:01:04.5]} 26... Qd7 {[%clk
0:01:56.4]} 27. Bxe5 {[%clk 0:01:00.5]} 27... Bxe5 {[%clk 0:01:55.4]} 28. Bc4
{[%clk 0:00:58.6]} 28... b5 {[%clk 0:01:51.7]} 29. Bb3 {[%clk 0:00:53.8]} 29...
Kh8 {[%clk 0:01:43.7]} 30. Nc5 {[%clk 0:00:49.9]} 30... Qe8 {[%clk 0:01:36.9]}
31. Rxh6 {[%clk 0:00:47.2]} 31... Bg7 {[%clk 0:01:37.5]} 32. Re6 {[%clk
0:00:42.4]} 32... Qf8 {[%clk 0:01:36.5]} 33. d6 {[%clk 0:00:42.1]} 33... Rd8
{[%clk 0:01:36.5]} 34. d7 {[%clk 0:00:35.5]} 34... f4 {[%clk 0:01:36.5]} 35. Re8
{[%clk 0:00:28.1]} 35... Rxe8 {[%clk 0:01:36.9]} 36. dxe8=Q {[%clk 0:00:26.7]}
36... Qxe8 {[%clk 0:01:37.8]} 37. Bxf7 {[%clk 0:00:26.4]} 37... Qxf7 {[%clk
0:01:38.7]} 38. Qd7 {[%clk 0:00:21.5]} 38... Qxd7 {[%clk 0:01:24.9]} 39. Nxd7
{[%clk 0:00:20.3]} 39... Bc3 {[%clk 0:01:23.6]} 40. a3 {[%clk 0:00:17]} 40...
Bb2 {[%clk 0:01:23.3]} 41. Nc5 {[%clk 0:00:17.5]} 41... Bxa3 {[%clk 0:01:23.3]}
42. Nxa6 {[%clk 0:00:18.1]} 42... Be4 {[%clk 0:01:20.4]} 43. Rd1 {[%clk
0:00:18.2]} 43... Kg7 {[%clk 0:01:14.4]} 44. Kg1 {[%clk 0:00:16.5]} 44... Kf7
{[%clk 0:01:11]} 45. g3 {[%clk 0:00:16.6]} 45... f3 {[%clk 0:01:08.8]} 46. Kf2
{[%clk 0:00:16.1]} 46... Bb2 {[%clk 0:01:06.8]} 47. Ke3 {[%clk 0:00:15.8]} 47...
Bc6 {[%clk 0:01:02]} 48. Nc5 {[%clk 0:00:15.5]} 48... Bc3 {[%clk 0:00:57.2]} 49.
Nd3 {[%clk 0:00:16.1]} 49... Bf6 {[%clk 0:00:39.5]} 50. g4 {[%clk 0:00:15.8]}
50... Ke6 {[%clk 0:00:35.5]} 51. Rf1 {[%clk 0:00:15.6]} 51... Be7 {[%clk
0:00:26.9]} 52. Nc5+ {[%clk 0:00:08.9]} 52... Kd5 {[%clk 0:00:25.4]} 53. Rxf3
{[%clk 0:00:06.9]} 53... Kc4 {[%clk 0:00:26]} 54. Rf5 {[%clk 0:00:07.5]} 54...
Kxb4 {[%clk 0:00:25.7]} 55. Ne4 {[%clk 0:00:07.9]} 55... Ka3 {[%clk 0:00:21.1]}
56. Re5 {[%clk 0:00:06.8]} 56... Bd8 {[%clk 0:00:19.1]} 57. Re6 {[%clk
0:00:07.3]} 57... Bd5 {[%clk 0:00:17.8]} 58. Rd6 {[%clk 0:00:07.5]} 58... Bxe4
{[%clk 0:00:11]} 59. Kxe4 {[%clk 0:00:06.5]} 59... Bc7 {[%clk 0:00:11.6]} 60.
Rc6 {[%clk 0:00:06.1]} 60... Bxh2 {[%clk 0:00:11.3]} 61. Kf5 {[%clk 0:00:06.4]}
61... Bf4 {[%clk 0:00:10.7]} 62. Re6 {[%clk 0:00:05.5]} 62... b4 {[%clk
0:00:10.2]} 63. Re4 {[%clk 0:00:05.4]} 63... b3 {[%clk 0:00:10]} 64. Rxf4 {[%clk
0:00:06.2]} 64... gxf4 {[%clk 0:00:10.9]} 65. Kxf4 {[%clk 0:00:06.9]} 65... b2
{[%clk 0:00:11.5]} 66. g5 {[%clk 0:00:07.3]} 66... b1=Q {[%clk 0:00:12.4]} 0-1